bitfinex/quotes_SOLUSD_20250805
["timestamp","ask_amount","ask_price","bid_price","bid_amount"]
[1754374886575,0.03,169.21,169.2,13.10165082]
[1754374888385,0.03,169.21,169.2,19.0118163]
[1754374894789,0.03,169.21,169.2,18.3018163]
[1754374896187,0.7,169.21,169.2,18.3018163]
[1754374896364,0.7,169.21,169.2,12.10599089]
[1754374896877,0.03,169.21,169.2,18.3018163]
[1754374902904,0.7,169.21,169.2,6.19582541]
[1754374905299,0.03,169.21,169.2,6.19582541]
[1754374905610,0.03,169.21,169.2,12.10599089]
[1754374905780,0.03,169.21,169.2,6.19582541]
[1754374907201,0.03,169.21,169.19,0.06]
[1754374907202,0.7,169.21,169.19,0.06]
[1754374908677,5.91016548,169.2,169.19,0.06]
[1754374909195,6.58016548,169.2,169.19,0.06]
[1754374912191,12.77599089,169.2,169.19,0.06]
[1754374914303,54.09599089,169.2,169.19,0.06]
[1754374915189,47.90016548,169.2,169.19,0.06]
[1754374921110,41.99,169.2,169.19,0.06]
[1754374921287,0.03,169.21,169.19,6.96582541]
[1754374921486,0.03,169.21,169.2,6.90582541]
[1754374922694,0.03,169.21,169.2,6.19582541]
[1754374924610,0.03,169.21,169.2,12.81599089]
[1754374925094,0.03,169.21,169.2,6.90582541]
[1754374925301,0.03,169.21,169.2,6.19582541]
[1754374928488,0.03,169.21,169.2,12.81599089]
[1754374928897,0.03,169.21,169.2,19.0118163]
[1754374929396,0.03,169.23,169.2,33.78723001]
[1754374929610,0.03,169.23,169.22,32.19582541]
[1754374930010,0.03,169.23,169.22,32.90582541]
[1754374930532,0.03,169.23,169.22,80.11529237]
[1754374931702,0.03,169.23,169.22,74.20582541]
[1754374933899,0.03,169.23,169.22,47.49582541]
[1754374934095,0.69,169.23,169.22,47.49582541]
[1754374934326,0.69,169.23,169.22,6.19582541]
[1754374935330,6.59911776,169.23,169.22,6.19582541]
[1754374936204,0.69,169.23,169.22,6.19582541]
[1754374936426,6.59911776,169.23,169.22,6.19582541]
[1754374936806,0.69,169.23,169.22,6.19582541]
[1754374937207,0.03,169.23,169.22,6.19582541]
[1754374937704,0.69,169.23,169.22,6.19582541]
[1754374938737,0.69,169.23,169.2,6.19582541]
[1754374938944,6.19582541,169.21,169.19,0.06]
[1754374939246,6.57016548,169.2,169.19,0.06]
[1754374939637,5.91016548,169.2,169.19,0.06]
[1754374939841,6.57016548,169.2,169.19,0.06]
[1754374940939,12.76599089,169.2,169.19,0.06]
[1754374942951,53.87220646,169.2,169.19,1e-08]
[1754374943159,32.57016548,169.2,169.19,1e-08]
[1754374943322,6.57016548,169.2,169.19,1e-08]
[1754374944732,12.76599089,169.2,169.19,1e-08]
[1754374945137,6.57016548,169.2,169.19,1e-08]
[1754374947039,12.76599089,169.2,169.19,1e-08]
[1754374949869,6.57016548,169.2,169.19,1e-08]
[1754374952941,5.91016548,169.2,169.19,6.90582542]
[1754374953269,0.03,169.21,169.19,6.90582542]
[1754374953559,0.03,169.21,169.2,6.19582541]
[1754374953773,0.03,169.21,169.2,6.90582541]
[1754374954146,0.03,169.21,169.2,0.71]
[1754374954388,0.03,169.21,169.2,6.90582541]
[1754374955865,0.03,169.21,169.2,12.81599089]
[1754374956873,0.03,169.21,169.2,6.62016548]
[1754374957059,0.03,169.21,169.2,19.0118163]
[1754374957564,0.03,169.23,169.22,26.0]
[1754374957867,0.03,169.23,169.22,32.19582541]
[1754374958046,0.03,169.23,169.22,32.90582541]
[1754374958853,0.03,169.23,169.22,38.81529237]
[1754374959171,0.03,169.23,169.22,32.61946696]
[1754374959343,0.03,169.23,169.22,80.11529237]
[1754374960871,0.03,169.25,169.22,80.11529237]
[1754374960872,0.03,169.25,169.22,95.22150794]
[1754374961168,0.03,169.25,169.24,6.19582541]
[1754374961353,0.03,169.27,169.24,6.19582541]
[1754374961554,0.03,169.27,169.26,6.19582541]
[1754374961947,0.03,169.27,169.26,6.90582541]
[1754374962969,0.03,169.27,169.26,27.9201114]
[1754374963151,0.03,169.27,169.26,21.72428599]
[1754374963349,0.03,169.29,169.28,41.10621557]
[1754374963550,0.03,169.29,169.28,53.49786639]
[1754374963859,0.03,169.29,169.28,80.42165082]
[1754374964857,0.03,169.29,169.28,47.51582541]
[1754374965259,0.03,169.29,169.28,41.32]
[1754374965468,0.03,169.29,169.28,53.42319781]
[1754374965862,0.03,169.29,169.28,47.51582541]
[1754374967760,0.7,169.29,169.27,6.19582541]
[1754374968153,0.7,169.29,169.28,6.19582541]
[1754374968352,0.03,169.29,169.28,6.19582541]
[1754374968648,0.03,169.29,169.25,41.32]
[1754374968848,0.67,169.28,169.26,6.19582541]
[1754374969080,6.57757418,169.28,169.25,47.51582541]
[1754374969281,0.67,169.27,169.25,47.51582541]
[1754374969867,0.67,169.27,169.24,6.19582541]
[1754374970073,0.67,169.27,169.23,6.19582541]
[1754374970669,0.67,169.26,169.24,6.19582541]
[1754374970870,0.67,169.25,169.24,6.19582541]
[1754374972472,6.5779855,169.27,169.24,6.19582541]
[1754374972793,0.67,169.26,169.24,6.19582541]
[1754374972976,5.9073724,169.28,169.24,6.19582541]
[1754374973174,0.67,169.25,169.24,6.19582541]
[1754374973384,0.67,169.25,169.23,6.19582541]
[1754374973888,0.67,169.24,169.22,41.34]
[1754374974087,6.19582541,169.25,169.2,6.19582541]
[1754374974274,0.67,169.23,169.2,6.19582541]
[1754374974473,6.19582541,169.25,169.2,6.19582541]
[1754374974683,0.67,169.22,169.2,6.19582541]
[1754374975597,0.67,169.25,169.21,6.19582541]
[1754374975775,0.67,169.25,169.22,6.19582541]
[1754374977165,5.90844737,169.25,169.22,6.19582541]
[1754374977367,0.67,169.24,169.2,0.71]
[1754374977562,0.67,169.23,169.21,6.19582541]
[1754374978207,148.87,169.24,169.22,6.19582541]
[1754374978867,155.09582541,169.23,169.2,0.06]
[1754374979068,6.19582541,169.21,169.2,0.06]
[1754374979689,0.7,169.21,169.2,0.06]
[1754374979897,6.89582541,169.21,169.2,0.06]
[1754374980974,6.6098162,169.21,169.2,0.06]
[1754374981191,12.80564161,169.21,169.2,0.06]
[1754374983804,27.91185718,169.21,169.2,0.06]
[1754374985008,12.80564161,169.21,169.2,0.06]
[1754374985392,6.6098162,169.21,169.2,0.06]
[1754374985711,12.80564161,169.21,169.2,0.06]
[1754374986798,6.6098162,169.21,169.2,0.06]
[1754374987302,12.80564161,169.21,169.2,0.06]
[1754374987905,6.6098162,169.21,169.2,0.06]
[1754374988134,12.80564161,169.21,169.2,0.06]
[1754374989895,6.6098162,169.21,169.2,0.06]
[1754374990205,12.80564161,169.21,169.2,0.06]
[1754374995916,6.6098162,169.21,169.2,0.06]
[1754374996101,12.80564161,169.21,169.2,0.06]
[1754374996712,6.6098162,169.21,169.2,0.06]
[1754374996907,12.80564161,169.21,169.2,0.06]
[1754374997993,27.91185718,169.21,169.2,0.06]
[1754374998192,53.91185718,169.21,169.2,0.06]
[1754374999903,95.21185718,169.21,169.2,0.06]
[1754375000626,80.10564161,169.21,169.2,0.06]
[1754375001898,79.40564161,169.21,169.2,0.06]
[1754375002324,47.2098162,169.21,169.2,0.06]
[1754375002824,47.9098162,169.21,169.2,0.06]
[1754375003001,54.10564161,169.21,169.2,0.06]
[1754375003806,47.9098162,169.21,169.2,0.06]
[1754375004031,54.10564161,169.21,169.2,0.06]
[1754375004325,41.3,169.21,169.2,0.06]
[1754375004629,5.90963838,169.22,169.2,0.78]
[1754375004826,41.3,169.22,169.2,0.06]
[1754375005122,41.3,169.22,169.21,0.72]
[1754375005325,15.83621557,169.27,169.21,6.91582541]
[1754375005624,15.83621557,169.27,169.2,0.06]
[1754375005625,41.3,169.26,169.24,6.19582541]
[1754375005929,47.20807042,169.26,169.24,6.19582541]
[1754375007232,47.20807042,169.26,169.23,0.72]
[1754375007522,41.3,169.26,169.24,6.19582541]
[1754375008028,47.20810638,169.26,169.21,5.90968911]
[1754375008225,41.3,169.26,169.23,6.19582541]
[1754375008422,41.3,169.26,169.23,6.91582541]
[1754375008723,41.3,169.26,169.24,6.19582541]
[1754375009518,0.03,169.27,169.25,6.19582541]
[1754375009705,148.2,169.26,169.25,6.19582541]
[1754375010838,148.2,169.26,169.25,6.85582541]
[1754375011711,148.2,169.26,169.25,12.7642449]
[1754375012612,148.2,169.26,169.25,6.85582541]
[1754375013236,148.2,169.26,169.25,12.7642449]
[1754375014232,148.2,169.26,169.25,0.66]
[1754375014416,148.2,169.26,169.25,6.19582541]
[1754375020541,148.2,169.26,169.25,12.7642449]
[1754375020833,148.2,169.26,169.25,6.19582541]
[1754375022120,148.2,169.26,169.25,12.1042449]
[1754375022341,148.2,169.26,169.25,12.7642449]
[1754375024239,148.2,169.26,169.25,6.19582541]
[1754375024741,148.2,169.26,169.25,6.85582541]
[1754375026037,148.86,169.26,169.25,6.19582541]
[1754375026238,148.2,169.26,169.25,12.1042449]
[1754375026544,148.2,169.26,169.25,12.7642449]
[1754375029459,148.2,169.26,169.25,12.1042449]
[1754375036573,148.2,169.26,169.25,5.90841949]
[1754375036864,148.86,169.26,169.25,6.19582541]
[1754375037080,148.86,169.26,169.23,0.06]
[1754375037375,0.66,169.25,169.23,47.53582541]
[1754375040569,0.66,169.25,169.23,0.06]
[1754375041154,6.56849493,169.25,169.23,0.06]
[1754375041562,0.72,169.24,169.23,0.06]
[1754375042368,148.2,169.26,169.23,6.25582541]
[1754375042570,148.2,169.26,169.24,6.19582541]
[1754375042761,0.72,169.25,169.24,6.19582541]
[1754375044182,0.72,169.25,169.23,6.25582541]
[1754375045284,0.72,169.25,169.23,0.06]
[1754375045455,0.72,169.25,169.23,6.25582541]
[1754375046051,0.03,169.27,169.24,6.19582541]
[1754375046283,0.03,169.27,169.26,6.19582541]
[1754375046458,0.75,169.27,169.26,6.19582541]
[1754375046983,0.75,169.27,169.24,0.7]
[1754375047175,0.75,169.27,169.25,6.19582541]
[1754375048202,0.03,169.27,169.26,6.19582541]
[1754375048382,0.03,169.27,169.25,6.60835269]
[1754375048557,0.03,169.27,169.26,6.19582541]
[1754375049263,0.03,169.27,169.26,12.80389583]
[1754375049473,0.03,169.27,169.26,12.10389583]
[1754375049871,0.03,169.27,169.26,6.19582541]
[1754375051275,0.75,169.27,169.24,47.18864466]
[1754375051479,0.72,169.26,169.25,6.19582541]
[1754375053578,0.72,169.26,169.23,6.25582541]
[1754375053786,6.62824201,169.26,169.23,0.06]
[1754375053986,5.90824201,169.26,169.23,0.06]
[1754375054285,0.72,169.25,169.23,0.06]
[1754375057771,154.39582541,169.24,169.23,0.06]
[1754375057977,201.60459402,169.24,169.23,0.06]
[1754375058285,212.2143715,169.24,169.23,0.06]
[1754375059180,189.5,169.24,169.23,0.06]
[1754375059373,148.2,169.24,169.23,0.06]
[1754375059894,161.02459402,169.24,169.23,0.06]
[1754375060101,154.82876861,169.24,169.23,0.06]
[1754375060394,161.02459402,169.24,169.23,0.06]
[1754375060802,202.34459402,169.24,169.23,0.06]
[1754375062883,54.14459402,169.24,169.23,0.06]
[1754375064089,56.51180802,169.24,169.23,0.06]
[1754375064476,54.14459402,169.24,169.23,0.06]
[1754375066103,69.25080959,169.24,169.23,0.06]
[1754375066300,73.22451669,169.24,169.23,0.06]
[1754375068288,69.25080959,169.24,169.23,0.06]
[1754375068687,75.58927375,169.24,169.23,0.06]
[1754375069583,75.58927375,169.24,169.21,0.06]
[1754375069584,41.10621557,169.22,169.21,0.06]
[1754375069798,88.60204098,169.22,169.21,0.06]
[1754375070101,89.27204098,169.22,169.21,0.06]
[1754375070304,91.63981598,169.22,169.21,0.06]
[1754375070800,97.54928294,169.22,169.21,0.06]
[1754375072100,91.35345753,169.22,169.21,0.06]
[1754375072292,97.54928294,169.22,169.21,0.06]
[1754375073311,75.57724196,169.22,169.21,0.06]
[1754375073809,73.20946696,169.22,169.21,0.06]
[1754375075903,80.07529237,169.22,169.21,0.06]
[1754375076478,95.18150794,169.22,169.21,0.06]
[1754375078804,97.54928294,169.22,169.21,0.06]
[1754375080080,97.54928294,169.22,169.19,1e-08]
[1754375080081,148.08,169.2,169.19,1e-08]
[1754375080286,47.51582541,169.2,169.19,1e-08]
[1754375080590,54.09599089,169.2,169.19,1e-08]
[1754375080792,56.46376489,169.2,169.19,1e-08]
[1754375081180,71.56998046,169.2,169.19,1e-08]
[1754375086405,49.59793948,169.2,169.19,1e-08]
[1754375086606,47.23016548,169.2,169.19,1e-08]
[1754375089313,53.42599089,169.2,169.19,1e-08]
[1754375091015,47.23016548,169.2,169.19,0.66000001]
[1754375091829,54.09599089,169.2,169.19,1e-08]
[1754375092720,53.42599089,169.2,169.19,1e-08]
[1754375092918,47.23016548,169.2,169.19,1e-08]
[1754375093246,53.42599089,169.2,169.19,1e-08]
[1754375093431,47.23016548,169.2,169.19,1e-08]
[1754375094525,12.16540298,169.22,169.19,6.85582542]
[1754375094741,5.90957798,169.22,169.2,0.66]
[1754375094906,0.03,169.23,169.2,6.85582541]
[1754375095242,4.0005285,169.23,169.22,6.19582541]
[1754375095527,4.0005285,169.23,169.22,6.85582541]
[1754375096931,4.0005285,169.23,169.22,0.66]
[1754375097138,4.0005285,169.23,169.22,6.85582541]
[1754375100767,4.0005285,169.23,169.22,6.19582541]
[1754375101219,4.0005285,169.23,169.21,6.85582541]
[1754375102545,4.0005285,169.23,169.22,6.19582541]
[1754375103338,4.0005285,169.23,169.21,6.85582541]
[1754375103532,4.0005285,169.23,169.21,6.19582541]
[1754375103712,45.3005285,169.23,169.21,6.19582541]
[1754375103924,3.9705285,169.22,169.21,6.85582541]
[1754375104118,4.0005285,169.23,169.21,6.85582541]
[1754375104442,3.9705285,169.22,169.21,6.85582541]
[1754375105061,3.9705285,169.22,169.21,12.76564161]
[1754375105353,4.0005285,169.23,169.21,12.76564161]
[1754375105553,4.0005285,169.23,169.22,6.19582541]
[1754375105852,4.0005285,169.23,169.22,6.85582541]
[1754375106947,4.0005285,169.23,169.22,6.19582541]
[1754375110658,10.61971436,169.23,169.21,6.19582541]
[1754375110957,4.6805285,169.22,169.21,6.19582541]
[1754375112258,3.9705285,169.22,169.21,6.19582541]
[1754375112964,3.9705285,169.22,169.2,6.25582541]
[1754375113141,3.9705285,169.21,169.2,6.25582541]
[1754375113345,3.9705285,169.22,169.2,6.25582541]
[1754375113563,3.9705285,169.21,169.2,6.25582541]
[1754375113735,3.9705285,169.22,169.2,6.25582541]
[1754375113942,3.9705285,169.21,169.2,6.25582541]
[1754375114144,152.1705285,169.22,169.2,6.25582541]
[1754375114348,3.9705285,169.21,169.2,0.06]
[1754375114558,3.9705285,169.21,169.2,6.25582541]
[1754375114859,3.9705285,169.21,169.2,6.91582541]
[1754375115156,3.9705285,169.21,169.2,6.25582541]
[1754375115370,3.9705285,169.21,169.2,0.06]
[1754375115537,3.9705285,169.21,169.2,6.25582541]
[1754375116043,10.87635391,169.21,169.2,0.06]
[1754375116568,10.5903447,169.21,169.2,0.06]
[1754375118230,3.9705285,169.21,169.2,0.06]
[1754375120929,9.8803447,169.21,169.2,0.06]
[1754375121129,3.9705285,169.21,169.2,0.06]
[1754375122162,4.6805285,169.21,169.2,0.06]
[1754375123031,3.9705285,169.21,169.2,6.25582541]
[1754375123235,3.9705285,169.21,169.2,6.91582541]
[1754375123466,3.9705285,169.22,169.2,6.91582541]
[1754375123757,3.9705285,169.21,169.2,0.72]
[1754375123964,3.9705285,169.22,169.2,0.72]
[1754375124262,3.9705285,169.21,169.2,0.72]
[1754375124565,3.9705285,169.22,169.2,0.72]
[1754375124749,3.9705285,169.21,169.2,6.91582541]
[1754375125073,3.9705285,169.22,169.2,6.91582541]
[1754375125242,3.9705285,169.21,169.2,6.91582541]
[1754375125565,3.9705285,169.22,169.2,6.91582541]
[1754375125772,3.9705285,169.21,169.2,6.25582541]
[1754375125974,3.9705285,169.22,169.2,6.25582541]
[1754375126262,3.9705285,169.21,169.2,6.25582541]
[1754375126469,3.9705285,169.22,169.2,6.25582541]
[1754375126642,3.9705285,169.21,169.2,6.25582541]
[1754375126833,3.9705285,169.22,169.2,6.25582541]
[1754375127037,3.9705285,169.21,169.2,0.06]
[1754375127365,3.9705285,169.22,169.2,0.06]
[1754375127672,3.9705285,169.21,169.2,0.06]
[1754375128771,4.6405285,169.21,169.2,0.06]
[1754375129155,3.9705285,169.21,169.2,0.06]
[1754375129665,3.9705285,169.22,169.2,0.06]
[1754375129869,10.86635391,169.23,169.2,0.06]
[1754375130449,0.67,169.22,169.2,0.06]
[1754375131271,0.67,169.21,169.2,0.06]
[1754375131475,0.67,169.22,169.2,0.06]
[1754375133062,10.19635391,169.23,169.2,0.06]
[1754375133063,0.67,169.21,169.2,0.06]
[1754375133951,10.86635391,169.23,169.2,0.06]
[1754375134154,6.89582541,169.23,169.2,0.06]
[1754375134680,0.67,169.22,169.2,0.06]
[1754375135386,0.03,169.22,169.2,0.06]
[1754375135586,0.67,169.21,169.2,0.06]
[1754375136803,0.03,169.22,169.2,0.06]
[1754375137000,0.7,169.22,169.2,0.06]
[1754375137802,0.67,169.21,169.2,0.06]
[1754375138097,0.03,169.22,169.2,0.06]
[1754375138321,0.7,169.22,169.2,0.06]
[1754375139892,0.03,169.22,169.2,4.70370877]
[1754375140075,0.03,169.22,169.21,4.64370877]
[1754375141486,0.03,169.22,169.21,10.55352497]
[1754375142802,0.03,169.22,169.21,12.77386736]
[1754375145174,0.03,169.22,169.21,12.08386736]
[1754375147008,0.03,169.22,169.21,6.17405116]
[1754375147216,0.7,169.22,169.21,6.17405116]
[1754375147510,0.7,169.22,169.2,12.14421664]
[1754375149900,148.87,169.21,169.2,0.06]
[1754375154017,148.2,169.21,169.2,6.23405116]
[1754375154185,148.2,169.21,169.2,6.92405116]
[1754375154607,0.03,169.22,169.2,6.92405116]
[1754375154822,0.03,169.22,169.21,6.86405116]
[1754375155585,0.03,169.22,169.21,6.17405116]
[1754375156910,0.7,169.22,169.21,6.17405116]
[1754375157723,0.7,169.22,169.2,0.06]
[1754375157908,0.67,169.21,169.2,0.06]
[1754375160419,0.03,169.22,169.2,6.23405116]
[1754375161525,0.03,169.22,169.2,0.06]
[1754375161728,0.66,169.21,169.2,0.06]
[1754375164221,6.5698162,169.21,169.2,0.06]
[1754375165124,12.74386736,169.21,169.2,0.06]
[1754375166024,6.5698162,169.21,169.2,0.06]
[1754375169112,16.72779623,169.21,169.2,0.06]
[1754375169305,31.8340118,169.21,169.2,0.06]
[1754375171250,3.98392887,169.21,169.2,6.23405116]
[1754375171543,0.03,169.22,169.2,6.23405116]
[1754375171715,0.66,169.21,169.2,0.06]
[1754375171914,6.83405116,169.21,169.2,0.06]
[1754375172146,10.81791516,169.21,169.2,0.06]
[1754375172539,10.5536802,169.21,169.2,0.06]
[1754375172730,4.643864,169.21,169.2,0.06]
[1754375173043,0.66,169.21,169.2,0.06]
[1754375173428,6.5698162,169.21,169.2,0.06]
[1754375175242,12.74386736,169.21,169.2,0.06]
[1754375175540,10.55449321,169.21,169.2,0.06]
[1754375175853,16.72854437,169.21,169.2,0.06]
[1754375178428,58.00854437,169.21,169.2,0.06]
[1754375179462,41.28,169.21,169.2,0.06]
[1754375180031,41.28,169.21,169.2,6.23405116]
[1754375180224,0.03,169.22,169.2,12.80413414]
[1754375180447,0.03,169.22,169.21,6.83405116]
[1754375182121,6.86405116,169.22,169.2,0.06]
[1754375182321,0.66,169.21,169.2,0.06]
[1754375183062,6.83405116,169.21,169.2,0.06]
[1754375183239,10.8175855,169.21,169.2,0.06]
[1754375183744,16.7274017,169.21,169.2,0.06]
[1754375185834,10.55335054,169.21,169.2,0.06]
[1754375186052,16.7274017,169.21,169.2,0.06]
[1754375186946,10.55335054,169.21,169.2,0.06]
[1754375187121,16.7274017,169.21,169.2,0.06]
[1754375190961,57.83361727,169.21,169.2,0.06]
[1754375197742,57.83361727,169.21,169.2,1e-08]
[1754375198071,163.30621555,169.19,169.18,0.06]
[1754375198241,214.74380105,169.19,169.18,0.06]
[1754375198567,215.44380105,169.19,169.18,0.06]
[1754375199455,221.35431585,169.19,169.18,0.06]
[1754375201561,205.54810028,169.19,169.18,0.06]
[1754375201740,164.26810028,169.19,169.18,0.06]
[1754375201942,195.39051478,169.19,169.18,0.77]
[1754375202748,47.1905148,169.19,169.18,0.77]
[1754375203657,47.1905148,169.19,169.18,0.06]
[1754375206380,0.03,169.21,169.18,6.94405116]
[1754375206670,0.03,169.21,169.2,6.17405116]
[1754375207173,0.03,169.21,169.2,6.88405116]
[1754375207368,0.03,169.21,169.2,12.79421664]
[1754375208183,0.03,169.21,169.2,18.9682678]
[1754375211652,0.03,169.21,169.2,12.79421664]
[1754375212156,0.03,169.21,169.2,6.17405116]
[1754375213249,0.03,169.21,169.2,12.79421664]
[1754375215476,0.03,169.21,169.2,6.17405116]
[1754375215674,0.03,169.21,169.19,6.17405116]
[1754375215864,0.03,169.21,169.2,6.17405116]
[1754375216676,0.73,169.21,169.2,6.17405116]
[1754375217063,0.03,169.21,169.2,6.17405116]
[1754375218883,0.03,169.21,169.18,0.06]
[1754375218884,6.87405116,169.21,169.18,0.06]
[1754375219082,6.17405116,169.2,169.18,0.06]
[1754375219258,6.84405116,169.2,169.18,0.06]
[1754375219458,0.67,169.19,169.18,0.06]
[1754375221789,12.75456596,169.19,169.18,0.06]
[1754375222596,12.78456596,169.19,169.18,0.06]
[1754375225806,27.89078153,169.19,169.18,0.06]
[1754375226597,12.78456596,169.19,169.18,0.06]
[1754375226789,54.08456596,169.19,169.18,0.06]
[1754375234418,69.19078153,169.19,169.18,0.06]
[1754375234816,75.53166774,169.19,169.18,0.06]
[1754375235405,148.08,169.17,169.16,0.06]
[1754375235604,189.36,169.17,169.16,0.06]
[1754375236493,195.27121357,169.17,169.16,0.06]
[1754375236817,201.44526473,169.17,169.16,0.06]
[1754375238522,202.11526473,169.17,169.16,0.06]
[1754375241223,54.03526473,169.17,169.16,0.06]
[1754375242308,47.86121357,169.17,169.16,0.06]
[1754375242509,54.03526473,169.17,169.16,0.06]
[1754375242711,69.1414803,169.17,169.16,0.06]
[1754375243015,71.5099563,169.17,169.16,0.06]
[1754375244313,71.5399563,169.17,169.16,0.06]
[1754375244892,75.50896706,169.17,169.16,0.06]
[1754375245497,15.10621557,169.16,169.15,1e-08]
[1754375245724,25.91927749,169.16,169.14,0.06]
[1754375245934,89.23026673,169.15,169.14,0.06]
[1754375246222,91.59916273,169.15,169.14,1e-08]
[1754375247016,101.47886015,169.15,169.14,1e-08]
[1754375247833,101.47886015,169.15,169.13,0.06]
[1754375247834,15.10621557,169.14,169.13,1e-08]
[1754375248040,15.77621557,169.14,169.13,1e-08]
[1754375248222,20.39295917,169.14,169.13,1e-08]
[1754375248626,28.93590633,169.14,169.12,1e-08]
[1754375248939,63.26026673,169.13,169.12,1e-08]
[1754375249233,69.17287833,169.13,169.12,1e-08]
[1754375256057,153.71393729,169.1,169.08,0.92]
[1754375256256,47.47405116,169.09,169.08,0.92]
[1754375257350,41.3,169.09,169.08,0.92]
[1754375257964,47.47405116,169.09,169.08,0.92]
[1754375259925,54.08806145,169.09,169.08,0.2]
[1754375260656,71.56387502,169.09,169.08,0.2]
[1754375262641,30.26387502,169.09,169.08,0.2]
[1754375262834,56.49765945,169.09,169.08,0.2]
[1754375263038,82.49765945,169.09,169.08,0.2]
[1754375269349,81.79765945,169.09,169.08,0.2]
[1754375269549,82.49765945,169.09,169.08,0.2]
[1754375270933,148.0,169.07,169.06,0.2]
[1754375271257,195.49405116,169.07,169.06,0.2]
[1754375271558,197.86364916,169.07,169.06,0.2]
[1754375272153,203.77835904,169.07,169.06,0.2]
[1754375272367,201.40876104,169.07,169.06,0.2]
[1754375273044,203.77835904,169.07,169.06,0.2]
[1754375274036,160.08876104,169.07,169.06,0.2]
[1754375274364,201.40876104,169.07,169.06,0.2]
[1754375274934,202.10876104,169.07,169.06,0.2]
[1754375275161,204.47835904,169.07,169.06,0.2]
[1754375276562,202.10876104,169.07,169.06,0.2]
[1754375276773,54.10876104,169.07,169.06,0.2]
[1754375277974,53.40876104,169.07,169.06,0.2]
[1754375281650,53.40876104,169.07,169.06,0.86]
[1754375281849,47.49405116,169.07,169.06,0.86]
[1754375282877,53.40876104,169.07,169.06,0.86]
[1754375284543,53.40876104,169.07,169.06,0.2]
[1754375286884,12.08876104,169.07,169.06,0.2]
[1754375287093,53.40876104,169.07,169.06,0.2]
[1754375287291,53.40876104,169.07,169.06,0.86]
[1754375287591,53.40876104,169.07,169.06,0.2]
[1754375288394,54.09876104,169.07,169.06,0.2]
[1754375289278,47.92470988,169.07,169.06,0.2]
[1754375289480,54.09876104,169.07,169.06,0.2]
[1754375290484,58.08168407,169.07,169.06,0.2]
[1754375291579,73.18789964,169.07,169.05,0.2]
[1754375291763,36.84697419,169.06,169.05,0.2]
[1754375292287,42.76203393,169.06,169.05,0.2]
[1754375294487,42.76370774,169.06,169.05,0.2]
[1754375298888,84.08370774,169.06,169.05,0.2]
[1754375301170,99.18992331,169.06,169.05,0.2]
[1754375301472,99.18992331,169.06,169.04,0.06]
[1754375301668,147.94,169.03,168.99,0.2]
[1754375301868,6.17405116,169.0,168.99,0.2]
[1754375302092,47.49405116,169.0,168.99,0.86]
[1754375303495,53.41121092,169.0,168.99,0.86]
[1754375304126,53.41121092,169.0,168.99,0.2]
[1754375304627,53.41121092,169.0,168.99,0.86]
[1754375308528,53.41121092,169.0,168.99,0.2]
[1754375309022,58.10727362,169.0,168.99,0.2]
[1754375309922,73.21348919,169.0,168.99,0.2]
[1754375310306,26.0,168.98,168.97,0.06]
[1754375310520,73.49405116,168.98,168.97,0.06]
[1754375310904,80.12191126,168.98,168.97,0.06]
[1754375312221,38.80191126,168.98,168.97,0.06]
[1754375312409,80.12191126,168.98,168.97,0.06]
[1754375315224,79.41191126,168.98,168.97,0.06]
[1754375318215,32.17405116,168.98,168.97,0.06]
[1754375318418,73.49405116,168.98,168.97,0.06]
[1754375319235,41.32,168.98,168.97,0.73]